Cogmind - Beta 14 *** ADVENTURER MODE // 2024.08.19 @ 09:52:19 Player: Bob Result: Destroyed by Y-45 Defender with Heavy Assault Rifle Performance ------------- Evolutions (0) 0 Regions Visited (3) 600 Robots Destroyed (26) 130 Value Destroyed (593) 593 Prototype IDs (0) 0 Alien Tech Used (0) 0 Bonus (0) 0 TOTAL SCORE: 1323 Bonus ------- None Cogmind --------- Core Integrity 0/250 Matter 295/300 Energy 100/100 System Corruption 0% Temperature Cool (9) Movement Core (450) Ox8 Location -8/Recycling Parts ------- > --- POWER (1) -------- (None) > --- PROPULSION (2) --- (None) > --- UTILITY (2) ------ Large Storage Unit Signal Interpreter > --- WEAPON (2) ------- Battle Cannon Makeshift Sword > --- INVENTORY (15) --- Light Ion Engine Signal Interpreter Light Armor Plating Shield Generator Shield Generator Shield Generator Beam Cannon Grenade Launcher Mining Laser Flamer Heavy Hammer Heavy Hammer Heavy Hammer Heavy Hammer Makeshift Spear Peak State ------------ > --- POWER ------------ Light Ion Engine > --- PROPULSION ------- Light Treads Light Treads > --- UTILITY ---------- Large Storage Unit Signal Interpreter > --- WEAPON ----------- Battle Rifle Makeshift Sword > --- INVENTORY -------- Light Ion Engine Signal Interpreter Light Armor Plating Shield Generator Shield Generator Shield Generator Beam Cannon Grenade Launcher Mining Laser Flamer Heavy Hammer Heavy Hammer Heavy Hammer Heavy Hammer Makeshift Spear [Rating: 13] Favorites ----------- Power Ion Engine Engine Ion Engine Propulsion Light Treads Treads Light Treads Utility Signal Interpreter Storage Large Storage Unit Processor Signal Interpreter Weapon Heavy Hammer Energy Gun Medium Laser Energy Cannon Beam Cannon Ballistic Gun Battle Rifle Ballistic Cannon Battle Cannon Impact Weapon Heavy Hammer Slashing Weapon Makeshift Sword Build | -11 -10 -10 -8 ------- Run | Yrd Mat Sub Rec Slots Evolved . | . . . . Power . | . . . . Propulsion . | . . . . Utility . | . . . . Weapon . | . . . . Parts Attached 17 | 6 6 5 . Power 2 | 1 . 1 . Engine 2 | 1 . 1 . Core . | . . . . Reactor . | . . . . Propulsion 4 | 2 1 1 . Treads 4 | 2 1 1 . Leg . | . . . . Wheel . | . . . . Hover . | . . . . Flight . | . . . . Utility 4 | 1 3 . . Device . | . . . . Storage 3 | 1 2 . . Processor 1 | . 1 . . Hackware . | . . . . Protection . | . . . . Artifact . | . . . . Weapon 7 | 2 2 3 . Energy Gun 2 | 2 . . . Energy Cannon 1 | . 1 . . Ballistic Gun 1 | . . 1 . Ballistic Cannon 1 | . . 1 . Launcher . | . . . . Special Weapon . | . . . . Impact Weapon 1 | . 1 . . Slashing Weapon 1 | . . 1 . Piercing Weapon . | . . . . Special Melee Weapon . | . . . . Unidentified Prototypes . | . . . . Parts Lost 4 | . . 3 1 Power 2 | . . 2 . Propulsion 2 | . . 1 1 Utility . | . . . . Weapon . | . . . . Highest Loss Streak 2 | . . 2 1 To Critical Strikes . | . . . . Average Slot Usage (%) 96 | . 98 93 71 Engine 12 | . 14 10 . Treads 26 | . 28 24 14 Storage 14 | . 14 14 14 Processor 13 | . 12 14 14 Energy Gun 9 | . 14 . . Energy Cannon 5 | . 1 10 . Ballistic Gun 1 | . . 2 . Impact Weapon 10 | . 11 9 . Slashing Weapon 1 | . . 4 14 Peak Build Rating 13 | 6 9 13 11 Average Rating 8 | 4 8 9 11 On Entrance 6 | . 6 9 11 Naked Turns . | . . . . Heaviest Build 31 | 14 31 31 25 Greatest Support 40 | 40 40 40 20 Greatest Overweight (x) 1 | . . 1 1 Average Overweight (x) . | . . . 1 Largest Inventory Capacity 15 | 8 15 15 15 Average Capacity 13 | 7 13 15 15 Most Carried 15 | 4 13 15 15 Average Carried 10 | . 9 13 15 Final Capacity 15 | 8 15 15 15 Final Carried 15 | . 13 15 15 Class Distribution -------------------- 100% | Mutant Dominant Class ---------------- Mutant | -10/Materials Mutant | -10/Subcaves Mutant | -8/Recycling Resources | -11 -10 -10 -8 ----------- Run | Yrd Mat Sub Rec Matter Collected 358 | 126 194 38 . Remotely . | . . . . Salvage Created 716 | . 397 319 . Parts 29 | . 20 9 . Haulers Intercepted 1 | . 1 . . Recyclers Shooed . | . . . . Parts Field Recycled . | . . . . Retrieved Matter . | . . . . Parts Self-Destructed 12 | . . 12 . Prevented . | . . . . Kills | -11 -10 -10 -8 ------- Run | Yrd Mat Sub Rec Combat Hostiles Destroyed 21 | . 12 9 . Melee 2 | . . 2 . Guns 7 | . 7 . . Cannons 6 | . 2 4 . Classes Destroyed 6 | . 4 2 . Hauler 1 | . 1 . . Turret 2 | . . 2 . Watcher 2 | . 2 . . Swarmer 11 | . 8 3 . Grunt 4 | . 4 . . Subdweller 6 | . . 6 . Best Kill Streak 4 | . 4 3 . Combat Bots Only 4 | . 4 3 . Max Kills in Single Turn 1 | . 1 1 . Gunslinging . | . . . . Exploded . | . . . . Melee 1 | . . 1 . Uniques/NPCs Destroyed . | . . . . Combat | -11 -10 -10 -8 -------- Run | Yrd Mat Sub Rec Hostile Shots Fired 176 | . 50 122 4 Missed 65 | . 16 48 1 Damage Taken 981 | . 269 676 36 Core 252 | . 50 178 24 Absorbed by Shields . | . . . . Ignored by Resistances 306 | . 88 208 10 Core Remaining (%) 100 | 100 . . . Volleys Fired 36 | . 25 11 . Largest 2 | . 2 1 . Hottest 100 | . 100 60 . Shots Fired 42 | . 31 11 . Gun 26 | . 25 1 . Cannon 16 | . 6 10 . Launcher . | . . . . Special . | . . . . Kinetic 1 | . . 1 . Thermal 41 | . 31 10 . Explosive . | . . . . Electromagnetic . | . . . . Robot Hit Streak 10 | . 10 9 . Robot Miss Streak 4 | . 4 1 . Penetration Max . | . . . . Secondary Targets . | . . . . Shots Hit Robots 53 | . 26 27 . Core Hits 20 | . 12 8 . Critical Kills 2 | . . 2 . Critical Parts Destroyed 4 | . 1 3 . Critical Strikes 9 | . 3 6 . Burn 2 | . 2 . . Smash 7 | . 1 6 . Melee Attacks 51 | . 10 41 . Impact 48 | . 10 38 . Slashing 3 | . . 3 . Piercing . | . . . . Sneak Attacks 1 | . 1 . . Combat Hostiles . | . . . . Follow-up Attacks . | . . . . Damage Inflicted 1509 | . 634 875 . Guns 186 | . 175 11 . Cannons 211 | . 54 157 . Explosions . | . . . . Melee 1112 | . 405 707 . Ramming . | . . . . Kinetic 11 | . . 11 . Thermal 386 | . 229 157 . Explosive . | . . . . Electromagnetic . | . . . . Impact 1038 | . 405 633 . Slashing 74 | . . 74 . Piercing . | . . . . Highest Corruption . | . . . . Average Corruption . | . . . . Corruption Purged . | . . . . Corruption Blocked . | . . . . Overload Shots . | . . . . Overflow Damage 260 | . 96 164 . Projectiles . | . . . . Explosions . | . . . . Melee 260 | . 96 164 . Knockbacks 8 | . 2 6 . Impact 8 | . 2 6 . Kinetic . | . . . . Secondary . | . . . . Self-Inflicted Damage . | . . . . Shots . | . . . . Rammed . | . . . . Targets Rammed . | . . . . Kicked . | . . . . Crushed . | . . . . Highest Temperature 246 | . 246 . . Average Temperature 82 | . 82 . . Received Heat Transfer 390 | . 90 282 18 Effects 3 | . 3 . . Energy Bleed 1 | . 1 . . Interference 2 | . 2 . . Siege Activations . | . . . . Robots Corrupted 7 | . 4 3 . Combat Hostiles 5 | . 2 3 . Parts Fried 7 | . 5 2 . Impact Corruptions 10 | . 6 4 . Robots Melted 1 | . 1 . . Combat Hostiles 1 | . 1 . . Parts Melted 2 | . 2 . . Heat Transferred 1110 | . 777 333 . Parts Sabotaged . | . . . . Parts Stolen . | . . . . Parts Stripped . | . . . . Power Chain Reactions . | . . . . Alert | -11 -10 -10 -8 ------- Run | Yrd Mat Sub Rec Peak Influence 196 | . 196 . 24 Initial 24 | . . . 24 Average 30 | . 31 . 24 Maximum Alert Level . | . . . . Low Security (%) 100 | 100 100 . 100 Level 1 . | . . . . Level 2 . | . . . . Level 3 . | . . . . Level 4 . | . . . . Level 5 . | . . . . High Security . | . . . . Max Security . | . . . . Squads Dispatched . | . . . . Investigation . | . . . . Extermination . | . . . . Reinforcement . | . . . . Assault . | . . . . Garrison . | . . . . Intercept . | . . . . Searches Triggered . | . . . . Construction Impeded . | . . . . Haulers Reinforced . | . . . . Active Scanning Responses . | . . . . Cargo Convoy Interrupts . | . . . . Stealth | -11 -10 -10 -8 --------- Run | Yrd Mat Sub Rec Distress Signals . | . . . . Communications Jammed . | . . . . Distress Signals . | . . . . Times Spotted 33 | . 19 13 1 Peak Tracking Total 4 | . 4 2 1 Tactical Retreats 2 | . 1 1 . Traps | -11 -10 -10 -8 ------- Run | Yrd Mat Sub Rec Traps Triggered 1 | . 1 . . Indirectly . | . . . . Trap Hack Attempts . | . . . . Triggered . | . . . . Disarmed . | . . . . Reprogrammed . | . . . . Reused . | . . . . Traps Extracted . | . . . . Installed . | . . . . Triggered . | . . . . Machines | -11 -10 -10 -8 ---------- Run | Yrd Mat Sub Rec Machines Disabled . | . . . . Max in Single Turn . | . . . . Machines Repaired . | . . . . Machines Dismantled . | . . . . Machines Sabotaged . | . . . . Overloaded Fab Kills . | . . . . Hacking | -11 -10 -10 -8 --------- Run | Yrd Mat Sub Rec Machines Accessed . | . . . . Terminals . | . . . . Fabricators . | . . . . Repair Stations . | . . . . Recycling Units . | . . . . Scanalyzers . | . . . . Garrison Access . | . . . . Total Hacks . | . . . . Successful . | . . . . Failed . | . . . . Catastrophic . | . . . . Database Lockouts . | . . . . Manual . | . . . . Terminals . | . . . . Fabricators . | . . . . Repair Stations . | . . . . Recycling Units . | . . . . Scanalyzers . | . . . . Garrison Access . | . . . . Terminal Hacks . | . . . . Fabricator Hacks . | . . . . Repair Station Hacks . | . . . . Recycling Unit Hacks . | . . . . Scanalyzer . | . . . . Garrison Access Hacks . | . . . . Unauthorized Hacks . | . . . . Terminals . | . . . . Fabricators . | . . . . Repair Stations . | . . . . Recycling Units . | . . . . Scanalyzers . | . . . . Garrison Access . | . . . . Data Cores Recovered . | . . . . Used . | . . . . Hacking Detections . | . . . . Full Trace Events . | . . . . Feedback Events . | . . . . Feedback Blocked . | . . . . Robot Schematics Acquired . | . . . . Robots Built . | . . . . Authchips . | . . . . Time . | . . . . Total Robot Build Rating . | . . . . Part Schematics Acquired . | . . . . Parts Built . | . . . . Authchips . | . . . . Time . | . . . . Total Part Build Rating . | . . . . Parts Repaired . | . . . . Time . | . . . . Parts Recycled . | . . . . Recycled Matter . | . . . . Retrieved Matter . | . . . . Retrieved Components . | . . . . Parts Scanalyzed . | . . . . Part Schematics Acquired . | . . . . Parts Damaged . | . . . . Bothacking | -11 -10 -10 -8 ------------ Run | Yrd Mat Sub Rec Used RIF Installer . | . . . . Robots Hacked . | . . . . Non-combat . | . . . . Combat . | . . . . Robot Hacks Applied . | . . . . Relay Couplers Released . | . . . . Fabnet Peak Effective % . | . . . . Robots Rewired . | . . . . Allies Hacked . | . . . . Hacks Repelled . | . . . . Allies | -11 -10 -10 -8 -------- Run | Yrd Mat Sub Rec Total Allies . | . . . . Largest Group . | . . . . Highest-Rated Group . | . . . . Highest-Rated Ally . | . . . . Total Orders . | . . . . Ally Attacks . | . . . . Total Damage . | . . . . Kills . | . . . . Allies Corrupted . | . . . . Allies Melted . | . . . . Intel | -11 -10 -10 -8 ------- Run | Yrd Mat Sub Rec Robot Analysis Total . | . . . . Derelict Logs Recovered . | . . . . Drone Launches . | . . . . Drone Recoveries . | . . . . Exploration | -11 -10 -10 -8 ------------- Run | Yrd Mat Sub Rec Turns Passed 3062 | 56 1923 1061 22 Spaces Moved 1491 | 35 941 508 7 Core 10 | 10 . . . Treads 1481 | 25 941 508 7 Legs . | . . . . Wheels . | . . . . Hover . | . . . . Flight . | . . . . Fastest Speed 50 | 50 160 160 240 Average Speed 164 | 128 160 174 240 Slowest Speed 240 | 160 160 240 240 Overloaded Moves . | . . . . Propulsion Burnouts . | . . . . Robots Hopped . | . . . . Cave-ins Triggered . | . . . . Exploration Rate (%) 35 | 4 99 35 5 Regions Visited 3 Branch Regions 2 Pre-discovered Areas . | . . . . Known Exits Taken 2 | . 1 1 . Unknown Exits Taken 1 | 1 . . . Scrap Searched 5 | . . 5 . Spaces Dug . | . . . . Terrain Destroyed . | . . . . Melee . | . . . . Projectile . | . . . . AOE . | . . . . Terrain Rammed . | . . . . Walls Destroyed . | . . . . Machines Disabled . | . . . . Actions | -11 -10 -10 -8 --------- Run | Yrd Mat Sub Rec Total 1972 | 46 1311 602 13 Wait 343 | . 306 31 6 Move 1488 | 34 940 507 7 Hop . | . . . . Pick Up 29 | 6 19 4 . Fast Attach 2 | . . 2 . Attach 9 | 6 2 1 . Detach . | . . . . Swap 6 | . 4 2 . Drop 8 | . 5 3 . Fire 36 | . 25 11 . Melee 51 | . 10 41 . Ram . | . . . . Kick . | . . . . Crush . | . . . . Escape Stasis . | . . . . Rewire . | . . . . Trap . | . . . . Miscellaneous . | . . . . Route ------- -11/Scrapyard -10/Materials (discovered 5 exits: *Mat x3 / *Min / *Sub) -10/Subcaves -8/Recycling History --------- Turn | Location | Event 5 | -11/Scrapyard | Discovered new exit (range 15) 57 | -11/Scrapyard | Entered Materials 317 | -10/Materials | Build established: Mutant 406 | -10/Materials | Discovered new exit (range 9) 515 | -10/Materials | Discovered new exit (range 16) 1067 | -10/Materials | Identified exit to Materials 1731 | -10/Materials | Discovered exit to Materials (range 4) 1756 | -10/Materials | Discovered new exit (range 16) 1792 | -10/Materials | Identified exit to Mines 1968 | -10/Materials | Discovered new exit (range 8) 1979 | -10/Materials | Identified exit to Subcaves 1980 | -10/Materials | Entered Subcaves 2266 | -10/Subcaves | Shifting Twisted Machinery released Sub. Monowheel 2273 | -10/Subcaves | Shifting Twisted Machinery released Sub. Beam Cannon 2312 | -10/Subcaves | Shifting Twisted Machinery released Sub. Laser 2408 | -10/Subcaves | Shifting Twisted Machinery released Sub. Optics 2524 | -10/Subcaves | Core integrity fell below 50% 2684 | -10/Subcaves | Disturbed a concealed Subdweller 2809 | -10/Subcaves | Discovered new exit (range 12) 2830 | -10/Subcaves | Core integrity fell below 20% 2859 | -10/Subcaves | Identified exit to Recycling 3041 | -10/Subcaves | Entered Recycling 3063 | -8/Recycling | Destroyed by Y-45 Defender with Heavy Assault Rifle Last Messages --------------- 02709_ Acquired 10 matter. 02711_ Subatomizers dissect the Sub. Machine Gun. 02721_ Subatomizers dissect the Sub. Monowheel. 02794_ Dropped Beam Cannon. 02795_ Acquired Battle Rifle. 02809_ EXIT=FOUND 02809_ Lgt. Treads destroyed. 02815_ Acquired 5 matter. 02819_ Acquired 3 matter. 02821_ Lgt. Ion Engine destroyed. 02834_ Autobeam Turret destroyed. 02859_ EXIT=IDENTIFIED: RECYCLING 02971_ 8A-05H(O) collects matter. 02983_ 8A-05H(O) puts together Battle Cannon. 03013_ Dropped Battle Rifle. 03013_ Acquired Battle Cannon. LOCATION=RECYCLING GOAL=ESCAPE 03053_ Y-45 Defender springs to life. 03063_ Lgt. Treads destroyed. Map ----- +----------------------------------------------------+ | ??????????????????????????????????????????????? | | ??????????????????????????????????????????????? | | ??????????????????????????????????????????????? | | ??????????????????????????????????????????????? | | ??????????????????????????????????????????????? | | ??????????????????????????????????????????????? | | ??????????????????????????????????????????????? | | ??????????????????????????????????????????????? | | ??????????????????????????????????????????????? | | ??????????????????????????????????????????????? | | ??????????????????????????????????????????????? | | ??????????????????????????????????????????????? | | ??????????????????????????????????????????????? | | ??????????????????????????? ????????????????? | | ??????????????????????????? #??????????????? | | ??????????????????????????? #??????????????? | | ??????????????????????????? ##?????????????? | | ??????????????????????????? ""#????????????? | | ??????????????????????????? Y"#????????????? | | ??????????????????????????# ""?????????????? | | ??????????????????????????# #??????????????? | | ??????????????????????????# #??????????????? | | ?????????????????########## #??????????????? | | ?????????????????# # ##?????????????? | | ?????????????????+ "" Y #?????????????? | | ?????????????????# Y"@# #??????????????? | | ?????????????????# "" # #??????????????? | | ?????????????????# + #??????????????? | | ?????????????????# """" # #??????????????? | | ?????????????????# """" # #??????????????? | | ?????????????????? """" # #??????????????? | | ???????????????????? # #??????????????? | | ???????????????????"T"##### #??????????????? | | ???????????????????"""????######??????????????? | | ??????????????????????????????????????????????? | | ??????????????????????????????????????????????? | | ??????????????????????????????????????????????? | | ??????????????????????????????????????????????? | | ??????????????????????????????????????????????? | | ??????????????????????????????????????????????? | | ??????????????????????????????????????????????? | | ??????????????????????????????????????????????? | | | | | | | | | | | | | | | | | +----------------------------------------------------+ Best States ------------- Heat Dissipation 25 Energy Generation 10 Energy Capacity 250 Matter Stores 300 Matter Capacity 300 Sight Range 16 Terrain Scan Density 10 Resistance: KI 20 Resistance: TH 20 Resistance: EX 20 Resistance: EM 20 Resistance: I 20 Resistance: S 20 Resistance: P 20 Evasion (%) 40 Recoil Reduction 2 Offensive Hacking 10 Item Schematics ----------------- None Robot Schematics ------------------ None Fabricated ------------ Nothing Alien Tech Used ----------------- None Achievements -------------- None Challenges ------------ None Game ------ Seed BlastEtherialAutopenetrator Manual? 0 Play Time 00:12:30 Cumulative 208.8 hours Start 2024.08.19 @ 09:39:58 End 2024.08.19 @ 09:52:19 Sessions 1 Manual Loads 0 Difficulty Adventurer Special Mode None Game No. 312 Rogue 241 Adventurer 71 Explorer 0 Win Type - Total 5 Types 2/1/0/2/0/0/0/0/0 Lore% 40 Gallery% 59 Achievement% 56 Wizard Run 0 Options --------- Layout 1 ASCII 0 Keyboard 0 Movement Arrows Keybinds 0 Fullscreen 1 Font 16/SmallcapsGlow Map View 55x38 Zoom Use 0% Tactical HUD 1 Map Filters NONE Filters NONE Steam 1 RUN: dcb917e8-7c27-47ad-82a5-b11784a34226